fUSD/lending_fUSD_20250812
["ID","MTS","AMOUNT","RATE_DAILY","PERIOD"]
[378688649,1754958724159,-400.0,0.000201,2]
[378688650,1754958724170,-330.39683492,0.000201,2]
[378688651,1754958724180,-400.0,0.000201,2]
[378688652,1754958724191,-199.5177937,0.000201,2]
[378688653,1754958724202,-400.0,0.000201,2]
[378688654,1754958724212,-209.08857315,0.000201,2]
[378688655,1754958724223,-400.0,0.000201,2]
[378688656,1754958724234,-400.0,0.000201,2]
[378688657,1754958724244,-243.3796092,0.000201,2]
[378688658,1754958724256,-400.0,0.000201,2]
[378688659,1754958724266,-400.0,0.000201,2]
[378688660,1754958724276,-1018.85,0.00020106,2]
[378688661,1754958724286,-5000.0,0.00020149,2]
[378688662,1754958724295,-5000.0,0.00020152,2]
[378688663,1754958724305,-500.0,0.00020178,2]
[378688664,1754958724316,-225.79,0.00020187,2]
[378688665,1754958724325,-186.0,0.000202,2]
[378688666,1754958724335,-5000.0,0.00020251,2]
[378688667,1754958724345,-1353.75,0.00020267,2]
[378688668,1754958724354,-1368.73,0.00020267,2]
[378688669,1754958724364,-835.27,0.00020267,2]
[378688670,1754958724373,-638.05,0.00020267,2]
[378688671,1754958724384,-1206.42,0.00020267,2]
[378688672,1754958724394,-8653.14,0.00020267,2]
[378688673,1754958724404,-5000.0,0.0002027,2]
[378688674,1754958724413,-350.0,0.00020274,2]
[378688675,1754958724423,-162.380719,0.00020274,2]
[378688676,1754958724433,-574.72,0.00020279,2]
[378688677,1754958724442,-978.66,0.00020279,2]
[378688678,1754958724451,-539.9,0.00020279,2]
[378688679,1754958724462,-400.0,0.00020279,2]
[378688680,1754958724471,-480.66,0.00020279,2]
[378688681,1754958724483,-446.06,0.00020279,2]
[378688682,1754958724493,-632.96,0.00020279,2]
[378688683,1754958724503,-833.05,0.00020279,2]
[378688684,1754958724512,-400.0,0.00020279,2]
[378688685,1754958724522,-594.7,0.0002028,2]
[378688686,1754958724532,-400.0,0.0002028,2]
[378688687,1754958724541,-400.0,0.0002028,2]
[378688688,1754958724551,-400.0,0.0002028,2]
[378688689,1754958724560,-487.30692299,0.0002028,2]
[378688690,1754958724570,-175.9661073,0.0002028,2]
[378688691,1754958724579,-400.0,0.0002028,2]
[378688692,1754958724589,-541.43,0.0002028,2]
[378688693,1754958724599,-400.0,0.0002028,2]
[378688694,1754958724608,-400.0,0.0002028,2]
[378688695,1754958724618,-586.31,0.0002028,2]
[378688696,1754958724627,-445.65,0.0002028,2]
[378688697,1754958724636,-400.0,0.0002028,2]
[378688698,1754958724646,-400.0,0.0002028,2]
[378688699,1754958724656,-400.0,0.0002028,2]
[378688700,1754958724666,-555.3,0.0002028,2]
[378688701,1754958724675,-400.0,0.0002028,2]
[378688702,1754958724685,-455.46,0.0002028,2]
[378688703,1754958724694,-528.53,0.0002028,2]
[378688704,1754958724704,-400.0,0.0002028,2]
[378688705,1754958724713,-808.45,0.0002028,2]
[378688706,1754958724724,-400.0,0.0002028,2]
[378688707,1754958724733,-400.0,0.0002028,2]
[378688708,1754958724743,-600.96,0.0002028,2]
[378688709,1754958724752,-400.0,0.0002028,2]
[378688710,1754958724763,-400.0,0.0002028,2]
[378688711,1754958724772,-400.0,0.0002028,2]
[378688712,1754958724782,-482.19,0.0002028,2]
[378688713,1754958724792,-548.353883,0.0002028,2]
[378688714,1754958724803,-349.959486,0.0002028,2]
[378688715,1754958724816,-400.0,0.0002028,2]
[378688716,1754958724826,-611.02,0.0002028,2]
[378688717,1754958724835,-409.66,0.0002028,2]
[378688718,1754958724845,-400.0,0.0002028,2]
[378688719,1754958724855,-652.048561,0.0002028,2]
[378688720,1754958724865,-400.0,0.0002028,2]
[378688721,1754958724874,-800.99,0.0002028,2]
[378688722,1754958724884,-400.0,0.0002028,2]
[378688723,1754958724894,-400.0,0.0002028,2]
[378688724,1754958724904,-820.43,0.0002028,2]
[378688725,1754958724913,-400.0,0.0002028,2]
[378688726,1754958724922,-565.37,0.0002028,2]
[378688727,1754958724932,-573.02,0.0002028,2]
[378688728,1754958724941,-1278.03,0.0002028,2]
[378688729,1754958724951,-422.09,0.0002028,2]
[378688730,1754958724960,-683.8,0.0002028,2]
[378688731,1754958724970,-400.0,0.0002028,2]
[378688732,1754958724981,-1082.91,0.0002028,2]
[378688733,1754958724990,-498.03519668,0.0002028,2]
[378688734,1754958725000,-400.0,0.0002028,2]
[378688735,1754958725010,-592.11,0.0002028,2]
[378688736,1754958725020,-400.0,0.0002028,2]
[378688737,1754958725029,-1009.96,0.0002028,2]
[378688738,1754958725038,-628.01,0.0002028,2]
[378688739,1754958725048,-487.32,0.0002028,2]
[378688740,1754958725057,-471.77,0.0002028,2]
[378688741,1754958725067,-405.23,0.0002028,2]
[378688742,1754958725077,-482.58,0.0002028,2]
[378688743,1754958725087,-1964.74,0.0002028,2]
[378688744,1754958725096,-400.0,0.0002028,2]
[378688745,1754958725106,-591.6,0.0002028,2]
[378688746,1754958725116,-400.0,0.0002028,2]
[378688747,1754958725125,-618.38,0.0002028,2]
[378688748,1754958725135,-400.0,0.0002028,2]
[378688749,1754958725144,-400.0,0.0002028,2]
[378688750,1754958725154,-1213.14823,0.0002028,2]
[378688751,1754958725164,-448.94,0.0002028,2]
[378688752,1754958725174,-2118.04,0.0002028,2]
[378688753,1754958725183,-1807.34,0.0002028,2]
[378688754,1754958725193,-367.98822983,0.0002028,2]
[378688755,1754958725203,-400.0,0.0002028,2]
[378688756,1754958725212,-927.74,0.0002028,2]
[378688757,1754958725222,-936.33,0.0002028,2]
[378688758,1754958725233,-609.57,0.0002028,2]
[378688759,1754958725243,-977.28,0.0002028,2]
[378688760,1754958725252,-1290.89,0.0002028,2]
[378688761,1754958725262,-417.25,0.0002028,2]
[378688762,1754958725271,-498.28,0.0002028,2]
[378688763,1754958725281,-510.01,0.0002028,2]
[378688764,1754958725291,-400.0,0.0002028,2]
[378688765,1754958725300,-543.52,0.00020281,2]
[378688766,1754958725310,-3558.75,0.00020281,2]
[378688767,1754958725319,-415.04,0.00020281,2]
[378688768,1754958725330,-400.0,0.00020281,2]
[378688769,1754958725339,-541.87,0.00020281,2]
[378688770,1754958725350,-686.48,0.00020281,2]
[378688771,1754958725359,-400.0,0.00020281,2]
[378688772,1754958725369,-843.54,0.00020281,2]
[378688773,1754958725380,-501.49,0.00020281,2]
[378688774,1754958725389,-411.31,0.00020281,2]
[378688775,1754958725400,-416.82,0.00020281,2]
[378688776,1754958725410,-400.0,0.00020281,2]
[378688777,1754958725419,-674.0,0.00020281,2]
[378688778,1754958725429,-412.88,0.00020281,2]
[378688779,1754958725439,-400.0,0.00020281,2]
[378688780,1754958725448,-400.0,0.00020281,2]
[378688781,1754958725458,-400.0,0.00020281,2]
[378688782,1754958725467,-400.0,0.00020281,2]
[378688783,1754958725477,-941.84,0.00020281,2]
[378688784,1754958725487,-435.86,0.00020281,2]
[378688785,1754958725497,-415.91,0.00020281,2]
[378688786,1754958725507,-1018.78,0.00020281,2]
[378688787,1754958725517,-400.0,0.00020281,2]
[378688788,1754958725526,-400.0,0.00020281,2]
[378688789,1754958725535,-400.0,0.00020281,2]
[378688790,1754958725545,-716.34,0.00020281,2]
[378688791,1754958725555,-806.63,0.00020281,2]
[378688792,1754958725564,-400.0,0.00020281,2]
[378688793,1754958725573,-400.0,0.00020281,2]
[378688794,1754958725582,-403.05,0.00020281,2]
[378688795,1754958725591,-487.36,0.00020281,2]
[378688796,1754958725601,-426.99189201,0.00020281,2]
[378688797,1754958725610,-400.0,0.00020281,2]
[378688798,1754958725620,-400.0,0.00020281,2]
[378688799,1754958725630,-406.99,0.00020281,2]
[378688800,1754958725639,-924.79,0.00020281,2]
[378688801,1754958725649,-896.54,0.00020281,2]
[378688802,1754958725658,-400.0,0.00020281,2]
[378688803,1754958725668,-400.0,0.00020281,2]
[378688804,1754958725677,-989.5,0.00020281,2]
[378688805,1754958725687,-400.0,0.00020281,2]
[378688806,1754958725697,-400.0,0.00020281,2]
[378688807,1754958725706,-429.77,0.00020281,2]
[378688808,1754958725716,-446.06,0.00020281,2]
[378688809,1754958725726,-400.0,0.00020281,2]
[378688810,1754958725735,-451.58,0.00020281,2]
[378688811,1754958725745,-840.46,0.00020281,2]
[378688812,1754958725754,-5484.25,0.00020281,2]
[378688813,1754958725763,-444.43,0.00020281,2]
[378688814,1754958725773,-1135.69,0.00020281,2]
[378688815,1754958725783,-400.0,0.00020281,2]
[378688816,1754958725792,-473.46,0.00020281,2]
[378688817,1754958725801,-310.50555085,0.00020281,2]
[378688818,1754958725811,-504.02,0.00020281,2]
[378688819,1754958725822,-425.72,0.00020281,2]
[378688820,1754958725831,-562.93,0.00020281,2]
[378688821,1754958725841,-485.33,0.00020281,2]
[378688822,1754958725851,-400.0,0.00020281,2]
[378688823,1754958725861,-716.05,0.00020281,2]
[378688824,1754958725871,-409.81,0.00020281,2]
[378688825,1754958725880,-1367.17,0.00020281,2]
[378688826,1754958725893,-418.15,0.00020281,2]
[378688827,1754958725903,-487.67,0.00020281,2]
[378688828,1754958725913,-463.33,0.00020281,2]
[378688829,1754958725922,-400.0,0.00020281,2]
[378688830,1754958725932,-435.04471412,0.00020281,2]
[378688831,1754958725941,-1005.19,0.00020281,2]
[378688832,1754958725950,-456.21,0.00020281,2]
[378688833,1754958725959,-760.85,0.00020281,2]
[378688834,1754958725969,-461.28,0.00020281,2]
[378688835,1754958725979,-400.0,0.00020281,2]
[378688836,1754958725989,-400.0,0.00020281,2]
[378688837,1754958725998,-415.53,0.00020281,2]
[378688838,1754958726008,-668.63,0.00020281,2]
[378688839,1754958726017,-1056.23,0.00020281,2]
[378688840,1754958726027,-229.0949743,0.00020281,2]
[378688841,1754958726037,-400.0,0.00020281,2]
[378688842,1754958726046,-401.8,0.00020281,2]
[378688843,1754958726056,-400.0,0.00020281,2]
[378688844,1754958726065,-1254.99,0.00020281,2]
[378688845,1754958726074,-400.0,0.00020281,2]
[378688846,1754958726084,-400.0,0.00020281,2]
[378688847,1754958726093,-416.54,0.00020281,2]
[378688848,1754958726103,-448.0,0.00020281,2]
[378688849,1754958726112,-434.77,0.00020281,2]
[378688850,1754958726122,-400.0,0.00020281,2]
[378688851,1754958726131,-1026.25,0.00020281,2]
[378688852,1754958726141,-428.67,0.00020281,2]
[378688853,1754958726150,-400.0,0.00020281,2]
[378688854,1754958726160,-855.22,0.00020281,2]
[378688855,1754958726169,-400.0,0.00020281,2]
[378688856,1754958726179,-527.94,0.00020281,2]
[378688857,1754958726188,-690.8,0.00020281,2]
[378688858,1754958726198,-660.29,0.00020281,2]
[378688859,1754958726207,-661.7,0.00020281,2]
[378688860,1754958726217,-177.63331836,0.00020281,2]
[378688861,1754958726226,-400.0,0.00020281,2]
[378688862,1754958726235,-553.06,0.00020281,2]
[378688863,1754958726245,-485.52,0.00020281,2]
[378688864,1754958726254,-689.02,0.00020281,2]
[378688865,1754958726265,-414.15,0.00020281,2]
[378688866,1754958726274,-400.0,0.00020281,2]
[378688867,1754958726284,-150.0,0.00020286,2]
[378688868,1754958726293,-1107.19,0.0002029,2]
[378688869,1754958726303,-646.57,0.0002029,2]
[378688870,1754958726312,-739.29,0.0002029,2]
[378688871,1754958726321,-541.35,0.0002029,2]
[378688872,1754958726331,-756.83,0.0002029,2]
[378688873,1754958726340,-540.43,0.0002029,2]
[378688874,1754958726350,-880.76,0.0002029,2]
[378688875,1754958726359,-1331.32,0.0002029,2]
[378688876,1754958726368,-1152.75,0.0002029,2]
[378688877,1754958726378,-1103.08,0.0002029,2]
[378688878,1754958726387,-673.98,0.0002029,2]
[378688879,1754958726397,-667.16,0.0002029,2]
[378688880,1754958726407,-1238.08,0.0002029,2]
[378688881,1754958726416,-723.65,0.0002029,2]
[378688882,1754958726426,-741.47,0.0002029,2]
[378688883,1754958726435,-1093.69,0.0002029,2]
[378688884,1754958726445,-5867.06,0.0002029,2]
[378688885,1754958726454,-810.42,0.00020292,2]
[378688886,1754958726464,-3266.0481347,0.00020307,2]
[378688887,1754958726546,-5000.0,0.0002036,2]
[378688888,1754958726555,-325.37,0.00020365,2]
[378688889,1754958726565,-400.0,0.00020374,2]
[378688890,1754958726574,-508.80715082,0.00020374,2]
[378688891,1754958726583,-400.0,0.00020374,2]
[378688892,1754958726592,-400.0,0.00020374,2]
[378688893,1754958726602,-400.0,0.00020374,2]
[378688894,1754958726611,-400.0,0.00020374,2]
[378688895,1754958726620,-400.0,0.00020374,2]
[378688896,1754958726629,-400.0,0.00020374,2]
[378688897,1754958726639,-2270.87,0.00020384,2]
[378688898,1754958726648,-5000.0,0.00020384,2]
[378688899,1754958726657,-5000.0,0.00020402,2]
[378688900,1754958726667,-6099.64702592,0.00020429,7]
[378688901,1754958726676,-5000.0,0.0002043,2]
[378688902,1754958726686,-1968.08,0.00020449,2]
[378688903,1754958726695,-150.0,0.00020452,2]
[378688904,1754958726704,-600.0,0.0002047,2]
[378688905,1754958726714,-25000.0,0.00020496,2]
[378688906,1754958726724,-257.91778498,0.00020535,2]
[378688907,1754958726734,-1353.75,0.00020541,2]
[378688908,1754958726743,-1368.73,0.00020541,2]
[378688909,1754958726753,-835.27,0.00020541,2]
[378688910,1754958726762,-638.05,0.00020541,2]
[378688911,1754958726773,-1206.42,0.00020541,2]
[378688912,1754958726784,-8653.14,0.00020541,2]
[378688913,1754958726793,-160.0,0.00020542,2]
[378688914,1754958726802,-386.87667747,0.00020542,2]
[378688915,1754958726813,-3134.2,0.00020547,2]
[378688916,1754958726824,-150.0,0.00020548,2]
[378688917,1754958726833,-189.4951588,0.0002055,2]
[378688918,1754958726842,-594.7,0.00020553,2]
[378688919,1754958726851,-400.0,0.00020553,2]
[378688920,1754958726864,-241.51576081,0.00020553,2]
[378688921,1754958726874,-400.0,0.00020553,2]
[378688922,1754958726885,-400.0,0.00020553,2]
[378688923,1754958726898,-541.43,0.00020553,2]
[378688924,1754958726907,-400.0,0.00020553,2]
[378688925,1754958726916,-400.0,0.00020553,2]
[378688926,1754958726926,-586.31,0.00020553,2]
[378688927,1754958726935,-445.65,0.00020553,2]
[378688928,1754958726945,-400.0,0.00020553,2]
[378688929,1754958726954,-400.0,0.00020553,2]
[378688930,1754958726963,-335.4606631,0.00020553,2]
[378688931,1754958726973,-555.3,0.00020553,2]
[378688932,1754958726982,-400.0,0.00020553,2]
[378688933,1754958726991,-455.46,0.00020553,2]
[378688934,1754958727000,-528.53,0.00020553,2]
[378688935,1754958727009,-537.88749396,0.00020553,2]
[378688936,1754958727019,-400.0,0.00020553,2]
[378688937,1754958727030,-808.45,0.00020553,2]
[378688938,1754958727039,-400.0,0.00020553,2]
[378688939,1754958727048,-600.96,0.00020553,2]
[378688940,1754958727058,-400.0,0.00020553,2]
[378688941,1754958727067,-400.0,0.00020553,2]
[378688942,1754958727076,-400.0,0.00020553,2]
[378688943,1754958727086,-482.19,0.00020553,2]
[378688944,1754958727096,-349.959486,0.00020553,2]
[378688945,1754958727105,-548.353883,0.00020553,2]
[378688946,1754958727115,-400.0,0.00020553,2]
[378688947,1754958727124,-611.02,0.00020553,2]
[378688948,1754958727133,-409.66,0.00020553,2]
[378688949,1754958727143,-254.7015065,0.00020553,2]
[378688950,1754958727152,-652.048561,0.00020553,2]
[378688951,1754958727161,-400.0,0.00020553,2]
[378688952,1754958727170,-800.99,0.00020553,2]
[378688953,1754958727179,-310.44774868,0.00020553,2]
[378688954,1754958727192,-400.0,0.00020553,2]
[378688955,1754958727201,-574.72,0.00020553,2]
[378688956,1754958727211,-820.43,0.00020553,2]
[378688957,1754958727221,-400.0,0.00020553,2]
[378688958,1754958727231,-565.37,0.00020553,2]
[378688959,1754958727240,-978.66,0.00020553,2]
[378688960,1754958727249,-573.02,0.00020553,2]
[378688961,1754958727259,-1278.03,0.00020553,2]
[378688962,1754958727268,-539.9,0.00020553,2]
[378688963,1754958727277,-422.09,0.00020553,2]
[378688964,1754958727286,-683.8,0.00020553,2]
[378688965,1754958727295,-506.53792251,0.00020553,2]
[378688966,1754958727304,-1082.91,0.00020553,2]
[378688967,1754958727314,-400.0,0.00020553,2]
[378688968,1754958727323,-400.0,0.00020553,2]
[378688969,1754958727332,-592.11,0.00020553,2]
[378688970,1754958727342,-400.0,0.00020553,2]
[378688971,1754958727351,-1009.96,0.00020553,2]
[378688972,1754958727360,-628.01,0.00020553,2]
[378688973,1754958727370,-487.32,0.00020553,2]
[378688974,1754958727379,-471.77,0.00020553,2]
[378688975,1754958727389,-480.66,0.00020553,2]
[378688976,1754958727399,-405.23,0.00020553,2]
[378688977,1754958727409,-446.06,0.00020553,2]
[378688978,1754958727419,-482.58,0.00020553,2]
[378688979,1754958727430,-1964.74,0.00020553,2]
[378688980,1754958727439,-400.0,0.00020553,2]
[378688981,1754958727449,-591.6,0.00020553,2]
[378688982,1754958727459,-632.96,0.00020553,2]
[378688983,1754958727469,-400.0,0.00020553,2]
[378688984,1754958727479,-618.38,0.00020553,2]
[378688985,1754958727489,-400.0,0.00020553,2]
[378688986,1754958727499,-400.0,0.00020553,2]
[378688987,1754958727509,-448.94,0.00020553,2]
[378688988,1754958727519,-2118.04,0.00020553,2]
[378688989,1754958727530,-1807.34,0.00020553,2]
[378688990,1754958727539,-400.0,0.00020553,2]
[378688991,1754958727549,-927.74,0.00020553,2]
[378688992,1754958727559,-936.33,0.00020553,2]
[378688993,1754958727569,-609.57,0.00020553,2]
[378688994,1754958727579,-977.28,0.00020553,2]
[378688995,1754958727589,-1290.89,0.00020553,2]
[378688996,1754958727599,-417.25,0.00020553,2]
[378688997,1754958727608,-833.05,0.00020553,2]
[378688998,1754958727619,-498.28,0.00020553,2]
[378688999,1754958727629,-510.01,0.00020553,2]
[378689000,1754958727638,-400.0,0.00020553,2]
[378689001,1754958727647,-400.0,0.00020553,2]
[378689002,1754958727658,-76903.56900347,0.00020555,2]
[378689003,1754958727669,-543.52,0.00020555,2]
[378689004,1754958727679,-3558.75,0.00020555,2]
[378689005,1754958727689,-415.04,0.00020555,2]
[378689006,1754958727698,-400.0,0.00020555,2]
[378689007,1754958727707,-541.87,0.00020555,2]
[378689008,1754958727718,-686.48,0.00020555,2]
[378689009,1754958727728,-400.0,0.00020555,2]
[378689010,1754958727738,-843.54,0.00020555,2]
[378689011,1754958727747,-501.49,0.00020555,2]
[378689012,1754958727757,-411.31,0.00020555,2]
[378689013,1754958727768,-416.82,0.00020555,2]
[378689014,1754958727779,-400.0,0.00020555,2]
[378689015,1754958727789,-674.0,0.00020555,2]
[378689016,1754958727799,-412.88,0.00020555,2]
[378689017,1754958727813,-400.0,0.00020555,2]
[378689018,1754958727832,-400.0,0.00020555,2]
[378689019,1754958727846,-400.0,0.00020555,2]
[378689020,1754958727856,-400.0,0.00020555,2]
[378689021,1754958727866,-941.84,0.00020555,2]
[378689022,1754958727875,-435.86,0.00020555,2]
[378689023,1754958727885,-415.91,0.00020555,2]
[378689024,1754958727895,-1018.78,0.00020555,2]
[378689025,1754958727905,-400.0,0.00020555,2]
[378689026,1754958727915,-400.0,0.00020555,2]
[378689027,1754958727926,-400.0,0.00020555,2]
[378689028,1754958727937,-716.34,0.00020555,2]
[378689029,1754958727947,-806.63,0.00020555,2]
[378689030,1754958727957,-400.0,0.00020555,2]
[378689031,1754958727966,-400.0,0.00020555,2]
[378689032,1754958727976,-403.05,0.00020555,2]
[378689033,1754958727986,-487.36,0.00020555,2]
[378689034,1754958727995,-400.0,0.00020555,2]
[378689035,1754958728006,-400.0,0.00020555,2]
[378689036,1754958728016,-406.99,0.00020555,2]
[378689037,1754958728026,-924.79,0.00020555,2]
[378689038,1754958728035,-896.54,0.00020555,2]
[378689039,1754958728045,-400.0,0.00020555,2]
[378689040,1754958728055,-400.0,0.00020555,2]
[378689041,1754958728066,-989.5,0.00020555,2]
[378689042,1754958728075,-400.0,0.00020555,2]
[378689043,1754958728087,-400.0,0.00020555,2]
[378689044,1754958728098,-429.77,0.00020555,2]
[378689045,1754958728108,-446.06,0.00020555,2]
[378689046,1754958728118,-400.0,0.00020555,2]
[378689047,1754958728127,-451.58,0.00020555,2]
[378689048,1754958728137,-840.46,0.00020555,2]
[378689049,1754958728147,-5484.25,0.00020555,2]
[378689050,1754958728157,-444.43,0.00020555,2]
[378689051,1754958728166,-1135.69,0.00020555,2]
[378689052,1754958728177,-400.0,0.00020555,2]
[378689053,1754958728187,-473.46,0.00020555,2]
[378689054,1754958728197,-504.02,0.00020555,2]
[378689055,1754958728208,-425.72,0.00020555,2]
[378689056,1754958728217,-562.93,0.00020555,2]
[378689057,1754958728228,-485.33,0.00020555,2]
[378689058,1754958728238,-400.0,0.00020555,2]
[378689059,1754958728253,-716.05,0.00020555,2]
[378689060,1754958728262,-409.81,0.00020555,2]
[378689061,1754958728273,-1367.17,0.00020555,2]
[378689062,1754958728283,-418.15,0.00020555,2]
[378689063,1754958728292,-487.67,0.00020555,2]
[378689064,1754958728302,-463.33,0.00020555,2]
[378689065,1754958728311,-400.0,0.00020555,2]
[378689066,1754958728321,-1005.19,0.00020555,2]
[378689067,1754958728331,-456.21,0.00020555,2]
[378689068,1754958728341,-760.85,0.00020555,2]
[378689069,1754958728351,-461.28,0.00020555,2]
[378689070,1754958728361,-400.0,0.00020555,2]
[378689071,1754958728370,-524.10305893,0.00020555,2]
[378689072,1754958728381,-415.53,0.00020555,2]
[378689073,1754958728391,-668.63,0.00020555,2]
[378689074,1754958728401,-1056.23,0.00020555,2]
[378689075,1754958728411,-400.0,0.00020555,2]
[378689076,1754958728421,-401.8,0.00020555,2]
[378689077,1754958728431,-400.0,0.00020555,2]
[378689078,1754958728442,-1254.99,0.00020555,2]
[378689079,1754958728452,-400.0,0.00020555,2]
[378689080,1754958728461,-400.0,0.00020555,2]
[378689081,1754958728471,-416.54,0.00020555,2]
[378689082,1754958728482,-448.0,0.00020555,2]
[378689083,1754958728492,-434.77,0.00020555,2]
[378689084,1754958728502,-156.59181167,0.00020555,2]
[378689085,1754958728512,-1026.25,0.00020555,2]
[378689086,1754958728522,-428.67,0.00020555,2]
[378689087,1754958728532,-400.0,0.00020555,2]
[378689088,1754958728543,-855.22,0.00020555,2]
[378689089,1754958728553,-400.0,0.00020555,2]
[378689090,1754958728563,-527.94,0.00020555,2]
[378689091,1754958728573,-690.8,0.00020555,2]
[378689092,1754958728583,-660.29,0.00020555,2]
[378689093,1754958728593,-661.7,0.00020555,2]
[378689094,1754958728603,-400.0,0.00020555,2]
[378689095,1754958728612,-553.06,0.00020555,2]
[378689096,1754958728623,-485.52,0.00020555,2]
[378689097,1754958728634,-689.02,0.00020555,2]
[378689098,1754958728644,-414.15,0.00020555,2]
[378689099,1754958728655,-400.0,0.00020555,2]
[378689100,1754958728664,-1351.46616987,0.0002056,2]
[378689101,1754958728674,-1107.19,0.00020564,2]
[378689102,1754958728684,-646.57,0.00020564,2]
[378689103,1754958728695,-739.29,0.00020564,2]
[378689104,1754958728706,-541.35,0.00020564,2]
[378689105,1754958728716,-756.83,0.00020564,2]
[378689106,1754958728726,-540.43,0.00020564,2]
[378689107,1754958728736,-880.76,0.00020564,2]
[378689108,1754958728746,-1331.32,0.00020564,2]
[378689109,1754958728755,-1152.75,0.00020564,2]
[378689110,1754958728765,-1103.08,0.00020564,2]
[378689111,1754958728775,-673.98,0.00020564,2]
[378689112,1754958728784,-667.16,0.00020564,2]
[378689113,1754958728794,-1238.08,0.00020564,2]
[378689114,1754958728804,-723.65,0.00020564,2]
[378689115,1754958728815,-741.47,0.00020564,2]
[378689116,1754958728826,-1093.69,0.00020564,2]
[378689117,1754958728835,-5867.06,0.00020564,2]
[378689118,1754958728845,-810.42,0.00020566,2]
[378689119,1754958728854,-400.0,0.0002057,2]
[378689120,1754958728865,-150.0,0.00020584,2]
[378689121,1754958728875,-5826.88,0.0002062,2]
[378689122,1754958728885,-400.0,0.00020648,2]
[378689123,1754958728895,-260.85117537,0.00020648,2]
[378689124,1754958728905,-400.0,0.00020648,2]
[378689125,1754958728914,-400.0,0.00020648,2]
[378689126,1754958728924,-358.73553847,0.00020648,2]
[378689127,1754958728934,-548.99825287,0.00020648,2]
[378689128,1754958728943,-400.0,0.00020648,2]
[378689129,1754958728953,-5000.0,0.00020658,2]
[378689130,1754958728963,-1163.77,0.0002069,2]
[378689131,1754958728972,-2214.82,0.00020696,2]
[378689132,1754958728983,-22175.65242192,0.000207,2]
[378689133,1754958728992,-5000.0,0.00020725,2]
[378689134,1754958729002,-150.0,0.0002073,2]
[378689135,1754958729014,-25000.0,0.00020749,2]
[378689136,1754958729031,-11021.80795828,0.00020751,2]
[378689137,1754958729041,-5000.0,0.00020768,2]
[378689138,1754958729051,-1353.75,0.00020815,2]
[378689139,1754958729061,-1368.73,0.00020815,2]
[378689140,1754958729070,-835.27,0.00020815,2]
[378689141,1754958729081,-638.05,0.00020815,2]
[378689142,1754958729091,-1206.42,0.00020815,2]
[378689143,1754958729100,-8653.14,0.00020815,2]
[378689144,1754958729110,-450.0,0.00020822,2]
[378689145,1754958729119,-168.3888056,0.00020822,2]
[378689146,1754958729129,-594.7,0.00020827,2]
[378689147,1754958729138,-400.0,0.00020827,2]
[378689148,1754958729148,-400.0,0.00020827,2]